[Event "Hungary Olimpic Hopes 2022"]
[Site "Tapolca"]
[Date "2022.06.24"]
[Round "4.4"]
[White "Bodrogi, Bendeguz"]
[Black "Szakmary, Domonkos"]
[Result "1/2-1/2"]
[ECO "A04"]
[WhiteElo "2198"]
[BlackElo "1934"]
[Annotator "TA"]
[PlyCount "63"]
[EventDate "2022.06.23"]
[EventType "swiss"]
[EventCountry "HUN"]
[SourceTitle "playchess.com"]
[Source "ChessBase"]
[SourceQuality "1"]
[TimeControl "5400+30"]

{[%evp 12,63,46,45,69,39,55,43,48,46,33,0,0,0,43,46,65,62,61,51,63,73,68,70,77,18,38,27,59,18,52,60,113,116,153,15,87,25,135,51,111,22,99,26,107,66,79,57,67,50,137,80,83,-106]} 1. Nf3 {[%emt 0:00:19]} c5 {[%emt 0:00:08]} 2. c4 {[%emt 0:00:14]} Nc6 {[%emt 0:00:22]} 3. d4 {[%emt 0:00:27]} cxd4 {[%emt 0:00:06]} 4. Nxd4 {[%emt 0:00:05]} Nf6 {[%emt 0:00:15]} 5. Nc3 {[%emt 0:01:23]} a6 {[%emt 0:04:35]} 6. g3 {[%emt 0:01:10]} e6 {[%emt 0:00:50]} 7. Bg2 {[%emt 0:00:50]} Bc5 {[%emt 0:02:14] A33: Symmetrical English: 2 Nf3 Nf6 3 d4 cxd4 4 Nxd4 e6 5 Nc3 Nc6.} 8. Nb3 {[%emt 0:04:03]} Be7 {[%emt 0:00:20]} 9. O-O {[%emt 0:00:25]} O-O {[%emt 0:01:25] White is slightly better.} 10. e4 {[%emt 0:01:54]} d6 {[%emt 0:06:03]} 11. h3 {[%emt 0:04:18]} Qc7 {[%emt 0:02:42]} 12. Qe2 {[%emt 0:03:37] [#]} b6 $146 {[%emt 0:05:02]} ({Predecessor:} 12... Ne5 13. Nd2 Bd7 14. f4 Nc6 15. Nb3 Rac8 16. Be3 Na5 17. Nxa5 Qxa5 18. Rfd1 Bc6 {0-1 (38) Scarella,E (2380)-Nogueiras Santiago,J (2550) San Martin 1995}) 13. Be3 {[%emt 0:00:30]} Rb8 {[%emt 0:05:27]} 14. Rac1 {[%emt 0:01:02][%cal Oc3d5]} Ne5 {[%emt 0:09:38]} 15. Nd2 {[%emt 0:03:54]} Bb7 {[%emt 0:02:01]} 16. f4 {[%emt 0:10:41]} Ng6 {[%emt 0:04:56]} 17. Bf3 {[%emt 0:21:22]} Rfe8 {[%emt 0:03:18]} 18. a4 {[%emt 0:04:39]} (18. Rfd1 $16) 18... Rbc8 {[%emt 0:09:21]} 19. Qf2 {[%emt 0:00:43]} Bd8 {[%emt 0:02:02]} 20. Rcd1 {[%emt 0:07:54]} Ba8 {[%emt 0:03:29]} 21. h4 {[%emt 0:03:49][%cal Bh3h4,Bh4h5][%mdl 32]} Qb8 {[%emt 0:01:39]} (21... Ne7 $14) 22. h5 $16 {[%emt 0:00:00]} Nf8 {[%emt 0:01:58]} 23. Ra1 {[%emt 0:13:35]} (23. h6 $16) 23... N6d7 {[%emt 0:07:53]} (23... h6 $1 $11) 24. Qe2 {[%emt 0:04:15]} (24. h6 $16) 24... Bc7 {[%emt 0:02:24] [#]} (24... Bf6 $11) 25. Rfd1 {[%emt 0:02:58] White is more active.} (25. h6 $1 $16) 25... Nf6 {[%emt 0:03:56]} (25... h6 $14) 26. Bf2 {[%emt 0:03:35]} ({White should play} 26. h6 $16) 26... Rcd8 {[%emt 0:04:21]} (26... h6 $1 $11) 27. Nf1 {[%emt 0:00:50]} (27. h6 $16) 27... Qc8 {[%emt 0:02:24]} (27... h6 $11 {keeps the balance.}) 28. Rac1 {[%emt 0:00:47][%cal Oh5h6,Ba1c1,Bc1c2,Bc2d2][%mdl 32]} N8d7 {[%emt 0:01:20]} 29. Rc2 {[%emt 0:02:49][%cal Oh5h6]} Qb8 {[%emt 0:00:30]} 30. Rcd2 {[%emt 0:00:25]} Bb7 {[%emt 0:01:18] [#]} (30... h6 $14) 31. Bg2 {[%emt 0:02:35]} ({White should try} 31. g4 $1) 31... Qa8 {[%emt 0:00:39]} 32. Be3 $2 {[%emt 0:00:45] Weighted Error Value: White=0.40/Black=0.38} (32. g4 $16 {keeps the pressure on.} h6 33. g5 hxg5 34. fxg5) 1/2-1/2

[Event "Hungary Olimpic Hopes 2022"]
[Site "Tapolca"]
[Date "2022.06.24"]
[Round "4.5"]
[White "Kovacs, Reka"]
[Black "Szarvas, Nora Orsolya"]
[Result "1/2-1/2"]
[ECO "B54"]
[WhiteElo "1685"]
[BlackElo "1669"]
[Annotator "NA RC"]
[PlyCount "107"]
[EventDate "2022.06.23"]
[EventType "swiss"]
[EventCountry "HUN"]
[SourceTitle "playchess.com"]
[Source "ChessBase"]
[SourceQuality "1"]
[TimeControl "5400+30"]

1. e4 {[%emt 0:00:03]} c5 {[%emt 0:00:02]} 2. Nf3 {[%emt 0:00:05]} d6 {[%emt 0:00:18]} 3. d4 {[%emt 0:00:07]} cxd4 {[%emt 0:00:04]} 4. Nxd4 {[%emt 0:00:10]} Nf6 {[%emt 0:00:06]} 5. f3 {[%emt 0:00:13]} Nc6 {[%emt 0:00:37]} 6. c4 {[%emt 0:00:44]} e5 {[%emt 0:04:38]} 7. Nc2 {[%emt 0:03:06]} Be6 {[%emt 0:00:26]} 8. Be2 {[%emt 0:02:24]} Be7 {[%emt 0:00:28]} 9. Be3 {[%emt 0:01:10]} O-O {[%emt 0:00:31]} 10. O-O {[%emt 0:00:16]} Rc8 {[%emt 0:00:21]} 11. Nc3 {[%emt 0:01:36]} Na5 {[%emt 0:01:44]} 12. b3 b6 {[%emt 0:04:12]} 13. Rc1 {[%emt 0:02:39]} Qd7 {[%emt 0:01:21]} 14. Qd2 {[%emt 0:01:57]} Rfd8 {[%emt 0:00:54]} 15. Rfd1 {[%emt 0:00:44]} Qb7 {[%emt 0:03:13]} 16. Nd5 {[%emt 0:02:15]} Bxd5 {[%emt 0:03:23]} 17. cxd5 {[%emt 0:01:32]} Qd7 {[%emt 0:01:08]} 18. Nb4 {[%emt 0:01:19]} Rxc1 {[%emt 0:00:51]} 19. Rxc1 {[%emt 0:02:56]} Rc8 {[%emt 0:01:28]} 20. Ba6 {[%emt 0:05:35]} Rc7 {[%emt 0:00:46]} 21. Rxc7 {[%emt 0:03:52]} Qxc7 {[%emt 0:00:14]} 22. Qc1 {[%emt 0:00:18]} Qxc1+ {[%emt 0:03:38]} 23. Bxc1 {[%emt 0:00:02]} Ne8 {[%emt 0:00:27]} 24. Be3 {[%emt 0:15:42]} Nc7 {[%emt 0:00:45]} 25. Bd3 {[%emt 0:04:59]} Kf8 {[%emt 0:06:51]} 26. Na6 Ne8 27. Bb5 {[%emt 0:07:51]} Bf6 {[%emt 0:04:33]} 28. Bxe8 {[%emt 0:03:39]} Kxe8 {[%emt 0:00:09]} 29. Nc7+ {[%emt 0:00:14]} Kd7 {[%emt 0:00:14]} 30. Nb5 {[%emt 0:00:24]} a6 {[%emt 0:00:37]} 31. Bxb6 {[%emt 0:04:05]} axb5 {[%emt 0:00:41]} 32. Bxa5 {[%emt 0:00:07]} Bg5 {[%emt 0:00:24]} 33. Kf2 {[%emt 0:00:35]} Kc8 {[%emt 0:00:15]} 34. Ke2 {[%emt 0:00:37]} Kb7 {[%emt 0:00:16]} 35. Kd3 {[%emt 0:01:28]} Ka6 {[%emt 0:00:17]} 36. Bb4 {[%emt 0:00:55]} Be7 {[%emt 0:00:05]} 37. f4 {[%emt 0:05:29]} f6 {[%emt 0:00:32]} 38. Ke3 {[%emt 0:00:46]} Kb6 {[%emt 0:00:45]} 39. Kf3 {[%emt 0:01:47]} exf4 {[%emt 0:04:34]} 40. Kxf4 {[%emt 0:00:29]} g6 {[%emt 0:00:10]} 41. g4 {[%emt 0:04:07]} Kc7 {[%emt 0:00:49]} 42. Bc3 {[%emt 0:03:14]} Kb6 {[%emt 0:01:36]} 43. b4 {[%emt 0:00:59]} Kc7 {[%emt 0:00:15]} 44. h4 {[%emt 0:00:44]} Kd7 {[%emt 0:00:38]} 45. Kg3 {[%emt 0:02:46]} Kc7 {[%emt 0:00:25]} 46. Bd2 {[%emt 0:01:05]} Bf8 {[%emt 0:01:30]} 47. Be3 {[%emt 0:02:10]} Kb7 {[%emt 0:00:48]} 48. Bd4 {[%emt 0:01:23]} Be7 {[%emt 0:00:12]} 49. Kf4 {[%emt 0:00:31]} Kc7 {[%emt 0:00:30]} 50. g5 {[%emt 0:01:05]} fxg5+ {[%emt 0:00:15]} 51. hxg5 {[%emt 0:00:02]} Kd7 {[%emt 0:00:26]} 52. Bc3 {[%emt 0:02:33]} Ke8 {[%emt 0:01:05]} 53. a3 {[%emt 0:03:07]} Kd7 {[%emt 0:00:44]} 54. Bd4 {[%emt 0:04:08]} 1/2-1/2

[Event "Hungary Olimpic Hopes 2022"]
[Site "Tapolca"]
[Date "2022.06.24"]
[Round "4.6"]
[White "Beznicza, Mira"]
[Black "Balazs, Sztella Anna"]
[Result "1/2-1/2"]
[ECO "C01"]
[WhiteElo "1635"]
[BlackElo "1572"]
[Annotator "NA RC"]
[PlyCount "119"]
[EventDate "2022.06.23"]
[EventType "swiss"]
[EventCountry "HUN"]
[SourceTitle "playchess.com"]
[Source "ChessBase"]
[SourceQuality "1"]
[TimeControl "5400+30"]

1. e4 {[%emt 0:00:04]} e6 {[%emt 0:00:03]} 2. d4 {[%emt 0:00:10]} d5 {[%emt 0:00:04]} 3. exd5 {[%emt 0:00:29]} exd5 {[%emt 0:00:06]} 4. c4 {[%emt 0:00:53]} Nf6 {[%emt 0:00:32]} 5. Nf3 {[%emt 0:00:41]} Bb4+ {[%emt 0:00:44]} 6. Bd2 {[%emt 0:01:36]} Bxd2+ {[%emt 0:00:08]} 7. Nbxd2 {[%emt 0:00:37]} O-O {[%emt 0:00:12]} 8. Be2 {[%emt 0:01:24]} dxc4 {[%emt 0:00:17]} 9. Nxc4 {[%emt 0:02:38]} Bf5 {[%emt 0:00:59]} 10. O-O {[%emt 0:07:26]} Nc6 {[%emt 0:00:21]} 11. Nce5 {[%emt 0:02:43]} Ne7 {[%emt 0:02:21]} 12. Bc4 Ne4 {[%emt 0:03:35]} 13. Qb3 {[%emt 0:07:23]} Nd6 14. Ng5 {[%emt 0:02:58]} Nxc4 {[%emt 0:02:50]} 15. Qxc4 {[%emt 0:04:44]} Nd5 {[%emt 0:00:57]} 16. Ngf3 {[%emt 0:01:06]} Be6 {[%emt 0:01:25]} 17. Qc2 {[%emt 0:09:57]} c6 18. Rfe1 Nb4 {[%emt 0:12:23]} 19. Qa4 {[%emt 0:06:38]} Qd6 {[%emt 0:01:27]} 20. a3 {[%emt 0:01:14]} Nd5 {[%emt 0:00:00]} 21. Qc2 h6 22. Rad1 {[%emt 0:05:21]} Rad8 {[%emt 0:03:19]} 23. Nd2 {[%emt 0:00:50]} Ne7 {[%emt 0:03:20]} 24. Ne4 {[%emt 0:01:15]} Qc7 {[%emt 0:00:31]} 25. Nc5 {[%emt 0:01:23]} Bf5 {[%emt 0:01:53]} 26. Qc4 {[%emt 0:03:47]} Rd5 {[%emt 0:01:10]} 27. Re3 {[%emt 0:02:22]} Rfd8 {[%emt 0:01:19]} 28. Rde1 {[%emt 0:02:02]} Nc8 {[%emt 0:03:06]} 29. Nb3 {[%emt 0:06:50]} Nd6 {[%emt 0:03:27]} 30. Qe2 Nb5 {[%emt 0:01:03]} 31. Nf3 {[%emt 0:02:37]} Be6 {[%emt 0:00:32]} 32. Nc5 Bf5 {[%emt 0:05:23]} 33. Re7 {[%emt 0:04:09]} Bd7 {[%emt 0:01:19]} 34. Ne5 {[%emt 0:08:39]} Nxd4 {[%emt 0:04:02]} 35. Qh5 {[%emt 0:01:51]} g6 {[%emt 0:04:53]} 36. Qh4 {[%emt 0:09:39]} Nf5 {[%emt 0:01:35]} 37. Qf6 {[%emt 0:00:42]} Nxe7 {[%emt 0:00:59]} 38. Qxf7+ {[%emt 0:00:20]} Kh8 {[%emt 0:00:06]} 39. Qxe7 {[%emt 0:01:14]} Rxe5 {[%emt 0:01:42]} 40. Qf6+ {[%emt 0:00:27]} Kh7 {[%emt 0:00:21]} 41. Rxe5 {[%emt 0:00:25]} Be6 {[%emt 0:02:53]} 42. h3 {[%emt 0:01:31]} Rd1+ {[%emt 0:00:39]} 43. Kh2 {[%emt 0:00:02]} Re1 {[%emt 0:00:40]} 44. f4 {[%emt 0:00:43]} Rxe5 {[%emt 0:00:09]} 45. fxe5 {[%emt 0:00:15]} Bd5 {[%emt 0:00:48]} 46. Ne6 {[%emt 0:02:00]} Bxe6 {[%emt 0:00:43]} 47. Qxe6 {[%emt 0:00:03]} Kg7 {[%emt 0:00:46]} 48. Qf6+ {[%emt 0:00:09]} Kh7 {[%emt 0:00:06]} 49. Qd6 {[%emt 0:00:03]} Qf7 {[%emt 0:01:31]} 50. e6 {[%emt 0:00:06]} Qf6 {[%emt 0:00:08]} 51. Qd7+ {[%emt 0:00:13]} Kg8 {[%emt 0:00:10]} 52. Qe8+ {[%emt 0:02:30]} Kg7 {[%emt 0:00:20]} 53. Qd7+ {[%emt 0:00:47]} Kg8 {[%emt 0:00:07]} 54. e7 {[%emt 0:00:18]} Qf4+ {[%emt 0:00:09]} 55. Kg1 {[%emt 0:00:13]} Qc1+ {[%emt 0:00:45]} 56. Kh2 {[%emt 0:00:45]} Qf4+ {[%emt 0:00:07]} 57. Kg1 {[%emt 0:00:42]} Qc1+ {[%emt 0:00:04]} 58. Kf2 {[%emt 0:00:08]} Qxb2+ {[%emt 0:00:08]} 59. Ke1 {[%emt 0:00:38]} Qe5+ {[%emt 0:00:15]} 60. Kf1 {[%emt 0:00:17]} 1/2-1/2

[Event "Hungary Olimpic Hopes 2022"]
[Site "Tapolca"]
[Date "2022.06.24"]
[Round "4.7"]
[White "Toth, Timea"]
[Black "Eros, Vivien"]
[Result "0-1"]
[ECO "B30"]
[WhiteElo "1964"]
[BlackElo "1592"]
[Annotator "NA RC"]
[PlyCount "94"]
[EventDate "2022.06.23"]
[EventType "swiss"]
[EventCountry "HUN"]
[SourceTitle "playchess.com"]
[Source "ChessBase"]
[SourceQuality "1"]
[TimeControl "5400+30"]

1. e4 {[%emt 0:00:02]} c5 {[%emt 0:00:02]} 2. Nf3 {[%emt 0:00:05]} Nc6 {[%emt 0:00:03]} 3. c3 {[%emt 0:00:03]} d5 {[%emt 0:00:06]} 4. exd5 {[%emt 0:00:04]} Qxd5 {[%emt 0:00:04]} 5. d4 {[%emt 0:00:05]} Nf6 {[%emt 0:00:09]} 6. dxc5 {[%emt 0:15:27]} Qxd1+ {[%emt 0:00:24]} 7. Kxd1 {[%emt 0:00:06]} Bg4 {[%emt 0:00:03]} 8. Be2 {[%emt 0:02:22]} O-O-O+ {[%emt 0:01:00]} 9. Ke1 {[%emt 0:00:12]} e6 {[%emt 0:08:48]} 10. b4 {[%emt 0:12:01]} a5 {[%emt 0:09:18]} (10... g6 $11) 11. a3 $14 {[%emt 0:22:07]} g6 {[%emt 0:20:42]} 12. Be3 {[%emt 0:00:50]} Bg7 13. Nd4 {[%emt 0:37:27]} Bxe2 {[%emt 0:06:57]} 14. Kxe2 Ne4 {[%emt 0:13:27]} 15. Nxc6 {[%emt 0:03:04]} bxc6 {[%emt 0:00:28]} 16. Rc1 {[%emt 0:00:39]} Kb7 {[%emt 0:03:03]} 17. f3 {[%emt 0:00:20]} Nf6 {[%emt 0:00:17]} 18. Nd2 {[%emt 0:00:36]} Ra8 {[%emt 0:03:43]} 19. Ra2 {[%emt 0:01:34]} Nd5 {[%emt 0:01:29]} 20. Ne4 {[%emt 0:01:40]} f5 {[%emt 0:01:45]} 21. Nd6+ {[%emt 0:00:10]} Kc7 {[%emt 0:00:14]} 22. Bd2 {[%emt 0:00:16]} axb4 {[%emt 0:06:46]} 23. cxb4 {[%emt 0:00:20]} Rhb8 {[%emt 0:00:44]} 24. Rcc2 {[%emt 0:01:09]} Be5 {[%emt 0:02:17]} 25. g3 {[%emt 0:01:01]} Bxd6 {[%emt 0:00:25]} 26. cxd6+ {[%emt 0:00:04]} Kxd6 {[%emt 0:00:10]} 27. f4 {[%emt 0:00:19]} Ra6 {[%emt 0:01:50]} 28. Bc3 {[%emt 0:00:08]} Rba8 {[%emt 0:00:27]} 29. Be5+ {[%emt 0:00:40]} Kd7 {[%emt 0:00:41]} 30. b5 {[%emt 0:01:46]} cxb5 {[%emt 0:00:14]} 31. Rab2 {[%emt 0:00:04]} Rc6 {[%emt 0:04:30]} 32. Rxc6 {[%emt 0:00:46]} Kxc6 {[%emt 0:00:05]} 33. Rb3 {[%emt 0:00:21]} Nb6 {[%emt 0:03:04]} 34. Kd3 {[%emt 0:01:00]} Nc4 {[%emt 0:00:27]} 35. a4 {[%emt 0:00:30]} Nxe5+ {[%emt 0:00:49]} 36. fxe5 {[%emt 0:00:06]} bxa4 {[%emt 0:00:08]} 37. Rb1 {[%emt 0:00:27]} a3 {[%emt 0:00:11]} 38. Kd4 {[%emt 0:00:19]} Ra4+ {[%emt 0:00:30]} 39. Kc3 {[%emt 0:00:13]} a2 {[%emt 0:00:13]} 40. Ra1 {[%emt 0:00:07]} Kd5 {[%emt 0:00:07]} 41. Kb3 {[%emt 0:00:16]} Ra8 {[%emt 0:00:06]} 42. Rxa2 {[%emt 0:00:08]} Rxa2 {[%emt 0:00:03]} 43. Kxa2 {[%emt 0:00:05]} Kxe5 44. Kb3 {[%emt 0:00:40]} Kd4 {[%emt 0:00:06]} 45. Kc2 {[%emt 0:00:10]} Ke3 {[%emt 0:00:04]} 46. Kd1 {[%emt 0:00:43]} Kf2 {[%emt 0:00:15]} 47. Kd2 {[%emt 0:00:09]} e5 {[%emt 0:00:05]} 0-1

[Event "Hungary Olimpic Hopes 2022"]
[Site "Tapolca"]
[Date "2022.06.24"]
[Round "4.8"]
[White "Karacsonyi, Luca"]
[Black "Lazsadi, Kerka Lilla"]
[Result "0-1"]
[ECO "C02"]
[WhiteElo "1834"]
[BlackElo "1755"]
[Annotator "NA RC"]
[PlyCount "76"]
[EventDate "2022.06.23"]
[EventType "swiss"]
[EventCountry "HUN"]
[SourceTitle "playchess.com"]
[Source "ChessBase"]
[SourceQuality "1"]
[TimeControl "5400+30"]

1. e4 {[%emt 0:00:02]} e6 {[%emt 0:00:11]} 2. d4 {[%emt 0:00:06]} d5 {[%emt 0:00:08]} 3. e5 {[%emt 0:00:04]} c5 {[%emt 0:00:12]} 4. c3 {[%emt 0:00:06]} Nc6 {[%emt 0:00:04]} 5. Nf3 {[%emt 0:00:16]} Bd7 {[%emt 0:00:08]} 6. Be2 {[%emt 0:00:06]} cxd4 {[%emt 0:00:28]} 7. cxd4 {[%emt 0:00:05]} Nh6 {[%emt 0:00:16]} (7... Nge7 $11) 8. Nc3 {[%emt 0:01:56]} f6 {[%emt 0:00:56]} 9. Be3 {[%emt 0:03:48]} fxe5 {[%emt 0:00:16]} 10. Nxe5 {[%emt 0:09:38]} Nxe5 {[%emt 0:01:05]} 11. dxe5 {[%emt 0:00:18]} Nf7 {[%emt 0:00:15]} (11... Nf5 $11) 12. Qd4 {[%emt 0:07:34]} (12. f4 $14) 12... b6 {[%emt 0:02:40] [#]} (12... Rc8 $11) 13. b4 {[%emt 0:05:14]} (13. Nxd5 $1 $14 {was preferrable.} exd5 14. Qxd5) 13... g6 {[%emt 0:12:32]} (13... a5 $5 {[%cal Ra5b4]} 14. b5 Bc5 $11) 14. O-O {[%emt 0:03:03]} Bg7 {[%emt 0:00:37]} 15. f4 $11 {[%emt 0:00:39]} O-O {[%emt 0:00:24]} 16. Kh1 {[%emt 0:04:07]} Nh6 {[%emt 0:01:13]} 17. Bf2 {[%emt 0:01:25]} Qe7 {[%emt 0:04:06]} 18. a3 {[%emt 0:00:49]} Rac8 {[%emt 0:00:48]} 19. Rac1 {[%emt 0:00:35]} Nf5 {[%emt 0:01:32]} 20. Qd2 {[%emt 0:02:15]} Bc6 {[%emt 0:00:46]} 21. Bd3 {[%emt 0:08:50]} Bh6 {[%emt 0:07:40]} 22. g4 {[%emt 0:09:58]} d4+ {[%emt 0:10:35]} 23. Ne4 {[%emt 0:00:47]} Qb7 24. gxf5 {[%emt 0:13:39]} Bxe4+ {[%emt 0:00:52]} 25. Kg1 {[%emt 0:00:39]} Rxc1 {[%emt 0:05:21]} 26. Rxc1 {[%emt 0:00:31]} Bxd3 {[%emt 0:00:07]} 27. Qxd3 {[%emt 0:00:15]} Bxf4 {[%emt 0:00:10]} 28. Re1 {[%emt 0:05:27]} Rxf5 {[%emt 0:00:14]} 29. Qxd4 {[%emt 0:01:42]} Rg5+ {[%emt 0:01:33]} 30. Bg3 {[%emt 0:00:21]} Bxg3 {[%emt 0:05:40]} 31. Qd8+ {[%emt 0:00:21]} Kg7 {[%emt 0:00:16]} 32. Qxg5 {[%emt 0:08:25]} Bxe1 {[%emt 0:00:07]} 33. Qf6+ {[%emt 0:00:11]} Kh6 {[%emt 0:00:35]} 34. Qf4+ {[%emt 0:01:50]} Kh5 {[%emt 0:00:44]} 35. Qe3 {[%emt 0:01:06]} Bh4 {[%emt 0:00:38]} 36. Qe2+ {[%emt 0:00:25]} Kh6 {[%emt 0:00:37]} 37. Qg4 {[%emt 0:00:49]} Qe7 {[%emt 0:00:56]} 38. Qc4 {[%emt 0:01:04]} Qg5+ {[%emt 0:00:12]} 0-1

[Event "Hungary Olimpic Hopes 2022"]
[Site "Tapolca"]
[Date "2022.06.24"]
[Round "4.9"]
[White "Juhasz, Edmond"]
[Black "Bod, Marton"]
[Result "0-1"]
[ECO "B40"]
[WhiteElo "1479"]
[BlackElo "1738"]
[Annotator "NA RC"]
[PlyCount "48"]
[EventDate "2022.06.23"]
[EventType "swiss"]
[EventCountry "HUN"]
[SourceTitle "playchess.com"]
[Source "ChessBase"]
[SourceQuality "1"]
[TimeControl "5400+30"]

1. e4 {[%emt 0:00:03]} c5 {[%emt 0:00:29]} 2. Nf3 {[%emt 0:00:05]} e6 {[%emt 0:00:14]} 3. Nc3 {[%emt 0:00:20]} Nc6 {[%emt 0:01:22]} 4. Bb5 {[%emt 0:00:22]} g6 {[%emt 0:05:42]} 5. d3 {[%emt 0:01:02]} Bg7 {[%emt 0:00:17]} 6. Bxc6 {[%emt 0:00:26]} bxc6 {[%emt 0:00:24]} 7. Be3 {[%emt 0:00:59]} Rb8 {[%emt 0:02:15]} 8. Rb1 {[%emt 0:00:38]} Rxb2 9. Rxb2 {[%emt 0:05:51]} Bxc3+ {[%emt 0:02:20]} 10. Nd2 {[%emt 0:01:11]} Bxb2 {[%emt 0:00:59]} 11. Bxc5 {[%emt 0:01:40]} Qa5 12. Qb1 {[%emt 0:00:25]} Bc3 {[%emt 0:01:47]} 13. Be3 {[%emt 0:03:18]} Ne7 {[%emt 0:02:49]} 14. Bh6 {[%emt 0:00:58]} Qh5 {[%emt 0:00:53]} 15. Be3 {[%emt 0:00:45]} O-O {[%emt 0:01:45]} 16. h3 Ba6 {[%emt 0:00:27]} 17. g4 {[%emt 0:02:18]} Qa5 {[%emt 0:00:51]} 18. f4 {[%emt 0:00:47]} Qb4 {[%emt 0:00:42]} 19. Qd1 {[%emt 0:00:43]} Rb8 20. Ke2 {[%emt 0:01:03]} Bxd2 {[%emt 0:00:56]} 21. Bxd2 {[%emt 0:00:19]} Qxe4+ {[%emt 0:00:11]} 22. Kf2 {[%emt 0:00:53]} Qa4 {[%emt 0:00:37]} 23. h4 Rb2 {[%emt 0:00:38]} 24. Qf3 {[%emt 0:01:55]} Qxc2 0-1

[Event "Hungary Olimpic Hopes 2022"]
[Site "Tapolca"]
[Date "2022.06.24"]
[Round "4.10"]
[White "Berla, Zoltan Mate"]
[Black "Lehocz, Jozsef Jr."]
[Result "1/2-1/2"]
[ECO "B00"]
[WhiteElo "1454"]
[BlackElo "1963"]
[Annotator "NA RC"]
[PlyCount "75"]
[EventDate "2022.06.23"]
[EventType "swiss"]
[EventCountry "HUN"]
[SourceTitle "playchess.com"]
[Source "ChessBase"]
[SourceQuality "1"]
[TimeControl "5400+30"]

1. e4 {[%emt 0:00:03]} b6 {[%emt 0:00:04]} 2. d4 {[%emt 0:00:10]} Bb7 {[%emt 0:00:04]} 3. Bd3 {[%emt 0:00:06]} e6 {[%emt 0:00:05]} 4. Nf3 {[%emt 0:00:26]} Nf6 {[%emt 0:00:44]} 5. Nbd2 {[%emt 0:00:39]} d5 {[%emt 0:00:20]} 6. Qe2 {[%emt 0:00:50]} Be7 {[%emt 0:00:42]} 7. e5 {[%emt 0:00:50]} Nfd7 {[%emt 0:00:06]} 8. c3 {[%emt 0:00:36]} c5 {[%emt 0:00:07]} 9. O-O {[%emt 0:02:23]} Nc6 {[%emt 0:00:08]} 10. b3 {[%emt 0:01:31]} Qc7 {[%emt 0:07:33]} 11. Bb2 {[%emt 0:05:59]} h6 {[%emt 0:02:40]} 12. Bb5 {[%emt 0:00:38]} a6 {[%emt 0:01:37]} 13. Bxc6 {[%emt 0:00:32]} (13. Bd3 $11) 13... Bxc6 {[%emt 0:00:17]} 14. c4 {[%emt 0:00:10]} O-O {[%emt 0:03:35]} 15. cxd5 {[%emt 0:03:26]} Bxd5 {[%emt 0:00:27]} 16. Rac1 {[%emt 0:01:24]} Qb7 {[%emt 0:01:00]} 17. Rfe1 {[%emt 0:01:13]} Rfd8 {[%emt 0:04:15]} 18. Ba3 {[%emt 0:05:11]} Rac8 $15 {[%emt 0:01:23]} 19. Ne4 {[%emt 0:07:42]} Bf8 {[%emt 0:05:10]} 20. Bb2 {[%emt 0:00:39]} b5 {[%emt 0:04:39]} 21. Nfd2 {[%emt 0:01:21]} Qa7 {[%emt 0:05:21]} 22. Nc3 {[%emt 0:03:13]} Bb7 {[%emt 0:01:58]} 23. d5 {[%emt 0:06:07]} b4 {[%emt 0:18:15]} 24. dxe6 {[%emt 0:02:28]} fxe6 {[%emt 0:03:29]} 25. Nce4 {[%emt 0:00:45]} Nb6 {[%emt 0:02:17]} 26. Qg4 {[%emt 0:03:13]} Bd5 {[%emt 0:01:52]} 27. Qg6 {[%emt 0:02:38]} Be7 {[%emt 0:04:32]} 28. Nf6+ {[%emt 0:05:41]} Bxf6 {[%emt 0:01:08]} 29. exf6 {[%emt 0:00:08]} Qf7 {[%emt 0:02:10]} 30. Qg3 {[%emt 0:04:16]} g6 {[%emt 0:01:41]} 31. Qh4 {[%emt 0:03:59]} Kh7 {[%emt 0:01:03]} 32. Nf3 {[%emt 0:05:11]} Bxf3 {[%emt 0:00:24]} 33. gxf3 {[%emt 0:00:05]} Rd2 {[%emt 0:01:06]} 34. Be5 {[%emt 0:02:18]} Nd5 {[%emt 0:05:13]} 35. Rc4 {[%emt 0:09:25]} Rxa2 36. Qxh6+ Kxh6 37. Rh4+ Kg5 38. Ree4 1/2-1/2

[Event "Hungary Olimpic Hopes 2022"]
[Site "Tapolca"]
[Date "2022.06.24"]
[Round "4.11"]
[White "Feher, Botond"]
[Black "Bardics, Marko"]
[Result "1-0"]
[ECO "B21"]
[WhiteElo "1792"]
[BlackElo "1417"]
[Annotator "NA RC"]
[PlyCount "37"]
[EventDate "2022.06.23"]
[EventType "swiss"]
[EventCountry "HUN"]
[SourceTitle "playchess.com"]
[Source "ChessBase"]
[SourceQuality "1"]
[TimeControl "5400+30"]

1. e4 {[%emt 0:00:03]} c5 {[%emt 0:00:19]} 2. d4 {[%emt 0:00:05]} cxd4 {[%emt 0:00:32]} 3. c3 {[%emt 0:00:03]} dxc3 {[%emt 0:01:00]} 4. Nxc3 {[%emt 0:00:05]} Nc6 {[%emt 0:02:40]} 5. Nf3 {[%emt 0:00:04]} e6 {[%emt 0:02:21]} 6. Bc4 {[%emt 0:00:06]} d6 {[%emt 0:01:23]} 7. O-O {[%emt 0:00:07]} Be7 {[%emt 0:02:05]} 8. Qe2 {[%emt 0:00:12]} Ne5 {[%emt 0:00:44]} 9. Nxe5 {[%emt 0:04:00]} dxe5 {[%emt 0:00:09]} 10. Rd1 {[%emt 0:00:52]} Qc7 {[%emt 0:00:07]} 11. Bb5+ {[%emt 0:03:13]} Kf8 {[%emt 0:00:17]} 12. Be3 {[%emt 0:03:00]} Nf6 {[%emt 0:03:34]} 13. Rac1 {[%emt 0:28:19]} Qb8 {[%emt 0:07:08]} 14. Ba4 {[%emt 0:06:10]} b6 {[%emt 0:04:07]} 15. Nb5 {[%emt 0:09:30]} a6 {[%emt 0:05:15]} 16. Nc7 {[%emt 0:00:24]} Ra7 {[%emt 0:00:46]} 17. Qc2 {[%emt 0:02:47]} h6 {[%emt 0:06:00]} 18. Qc6 Rb7 19. Nxa6 1-0